bitfinex-derivatives/quotes_SOLF0:USTF0_20251210
["timestamp","ask_amount","ask_price","bid_price","bid_amount"]
[1765363250250,4.91691143,137.09,137.02,2.52]
[1765363250450,3.17,137.08,137.02,2.52]
[1765363250754,3.17,137.11,137.03,2.52]
[1765363251167,0.05415055,137.08,137.06,0.0479896]
[1765363251350,3.22415055,137.08,137.06,0.0479896]
[1765363254256,0.05415055,137.08,137.06,0.0479896]
[1765363254658,3.22415055,137.08,137.06,0.0479896]
[1765363257156,0.05415055,137.08,137.06,2.5679896]
[1765363257357,3.22415055,137.08,137.06,0.0479896]
[1765363257761,3.22415055,137.08,136.99,3.52015491]
[1765363257957,3.17,137.07,136.99,6.09015491]
[1765363258367,3.17,137.05,136.99,12.65965491]
[1765363258958,0.05275049,137.03,137.01,0.02099055]
[1765363259162,0.05275049,137.03,137.01,9.15969055]
[1765363259358,0.05275049,137.03,137.02,2.57]
[1765363266072,0.00275049,137.03,137.02,2.57]
[1765363266263,9.735,137.1,137.04,2.52]
[1765363266461,102.1005,137.13,137.04,2.52]
[1765363266462,3.17,137.08,137.04,2.52]
[1765363267269,3.22313148,137.07,137.05,0.04690473]
[1765363268068,3.22313148,137.07,136.99,68.04015491]
[1765363268471,3.22313148,137.07,137.0,2.52]
[1765363269076,3.13,137.05,137.02,0.02683631]
[1765363270174,3.13,137.06,137.02,2.54683631]
[1765363270868,3.13,137.06,137.02,0.02683631]
[1765363271270,3.13,137.04,137.02,0.02683631]
[1765363272977,14.0,137.03,136.91,120.35451671]
[1765363273178,2.73304745,136.96,136.88,3.06]
[1765363273475,104.95754745,136.96,136.84,65.08]
[1765363273774,1.27,136.91,136.86,3.06]
[1765363273980,104.93114745,137.0,136.88,3.06]
[1765363274174,102.2052,136.99,136.89,65.06]
[1765363274370,2.73304745,136.99,136.89,3.06]
[1765363274771,109.84346581,136.97,136.88,3.06]
[1765363275077,0.05437251,136.94,136.91,0.04902609]
[1765363275267,102.29647251,136.94,136.91,0.04902609]
[1765363275473,102.2442,136.93,136.91,0.04902609]
[1765363276184,102.2594,136.91,136.82,3.17]
[1765363276571,251.2541,136.92,136.82,3.17]
[1765363277170,0.0505156,136.88,136.82,9.7478]
[1765363277373,0.0505156,136.88,136.83,105.4859]
[1765363277574,0.0505156,136.88,136.84,3.17]
[1765363277770,0.0505156,136.88,136.86,3.17]
[1765363277976,0.0505156,136.88,136.86,9.7459]
[1765363278179,0.0505156,136.88,136.84,3.17]
[1765363278379,102.2098,136.98,136.86,3.17]
[1765363278574,61.9,136.96,136.9,3.17]
[1765363279377,102.1958,137.0,136.9,3.17]
[1765363279378,0.05612686,136.94,136.92,3.2205156]
[1765363279581,0.04955081,136.94,136.92,3.2205156]
[1765363280282,0.04955081,136.94,136.92,0.0505156]
[1765363280685,6.62205081,136.94,136.92,0.0505156]
[1765363282086,61.96955081,136.94,136.92,0.0505156]
[1765363282484,0.04955081,136.94,136.92,3.2205156]
[1765363283278,0.04955081,136.94,136.92,0.0505156]
[1765363283680,1.46,136.93,136.85,62.0]
[1765363283880,1.46,136.93,136.78,21.69839376]
[1765363283881,102.2611,136.91,136.83,3.17]
[1765363284285,6.574,136.91,136.83,3.17]
[1765363284484,68.494,136.91,136.83,3.17]
[1765363284690,0.05324505,136.88,136.83,3.17]
[1765363284893,0.05324505,136.88,136.84,3.17]
[1765363285589,0.05324505,136.88,136.8,3.17]
[1765363285797,102.33624505,136.88,136.8,3.17]
[1765363286695,6.5762,136.86,136.8,3.17]
[1765363286996,0.05195159,136.84,136.8,3.17]
[1765363287192,0.05195159,136.84,136.78,62.0]
[1765363287193,6.62935159,136.84,136.77,3.17]
[1765363287388,0.05286716,136.82,136.77,3.17]
[1765363287588,0.05286716,136.82,136.79,3.17]
[1765363287784,61.94,136.89,136.79,4.63]
[1765363288090,164.2176,136.89,136.8,3.17]
[1765363288701,0.04800877,136.86,136.83,0.04701187]
[1765363288894,0.04800877,136.86,136.83,3.21701187]
[1765363289087,0.04800877,136.86,136.83,0.04701187]
[1765363289598,0.04800877,136.86,136.83,3.21701187]
[1765363291097,102.2235,136.96,136.85,3.17]
[1765363291296,164.173,136.95,136.85,3.17]
[1765363291692,102.2177,136.97,136.86,3.17]
[1765363291893,0.05315076,136.93,136.9,3.22569757]
[1765363292094,102.215,136.97,136.9,3.17]
[1765363292400,0.0534919,136.93,136.92,0.05481763]
[1765363292696,0.05480447,136.94,136.92,0.05481763]
[1765363293086,0.05480447,136.94,136.84,102.3075]
[1765363293289,0.05480447,136.94,136.83,3.17]
[1765363293290,7.62526581,136.94,136.83,3.17]
[1765363293503,102.2402,136.94,136.83,3.17]
[1765363293696,6.5736,136.92,136.85,3.17]
[1765363293886,61.94,136.93,136.85,3.17]
[1765363294285,0.05529148,136.9,136.88,0.0460583]
[1765363294900,0.05529148,136.9,136.88,3.2160583]
[1765363296696,0.05529148,136.9,136.88,0.0460583]
[1765363297093,0.05529148,136.9,136.88,3.2160583]
[1765363297391,164.1713,136.98,136.88,3.2160583]
[1765363297598,164.1713,136.98,136.88,3.17]
[1765363298300,0.04809911,136.94,136.92,0.05448945]
[1765363299506,0.04809911,136.94,136.92,3.22448945]
[1765363300211,6.5692,137.01,136.93,3.17]
[1765363300401,61.94,137.0,136.93,3.17]
[1765363301016,68.5095,137.0,136.93,3.17]
[1765363301300,0.05006052,136.98,136.95,0.0481175]
[1765363301910,6.5711,136.97,136.95,0.0481175]
[1765363302299,6.572,136.95,136.89,9.7446]
[1765363303505,0.04644369,136.93,136.91,3.22023552]
[1765363303711,0.05144873,136.93,136.91,3.22023552]
[1765363303900,6.5692,137.01,136.95,3.17]
[1765363304403,102.1661,137.04,136.95,3.17]
[1765363304607,102.1356,137.08,136.96,3.17]
[1765363304907,0.04780978,137.03,137.01,0.05329684]
[1765363305106,6.61824423,137.03,137.01,0.05329684]
[1765363306197,0.04994423,137.03,137.01,0.05329684]
[1765363306795,0.04994423,137.03,137.01,3.28329684]
[1765363307502,0.04994423,137.03,137.01,0.05329684]
[1765363308306,0.04994423,137.03,136.97,3.23]
[1765363308702,102.22274423,137.03,136.92,3.23]
[1765363309010,102.1775,137.02,136.92,3.23]
[1765363309309,0.05096109,136.98,136.96,0.04797374]
[1765363310012,0.05096109,136.98,136.96,3.27797374]
[1765363311107,0.05096109,136.98,136.96,0.04797374]
[1765363312013,0.05096109,136.98,136.96,3.27797374]
[1765363314209,102.1269,137.09,136.97,3.23]
[1765363314510,61.92,137.07,136.97,3.23]
[1765363315012,6.5677,137.04,136.98,9.8]
[1765363315210,164.0628,137.07,137.0,0.04795656]
[1765363315211,0.05078687,137.02,137.0,0.04795656]
[1765363315411,0.05207518,137.02,137.0,0.04795656]
[1765363315606,6.62067518,137.02,137.0,0.04795656]
[1765363319518,0.05207518,137.02,137.0,3.27795656]
[1765363321422,0.05207518,137.02,137.0,0.04795656]
[1765363322106,68.54067518,137.02,137.0,0.04795656]
[1765363325510,6.62067518,137.02,137.0,0.04795656]
[1765363325712,68.54067518,137.02,137.0,0.04795656]
[1765363326324,6.62067518,137.02,137.0,0.04795656]
[1765363327823,0.05207518,137.02,137.0,9.82725656]
[1765363328518,6.5689,137.01,137.0,0.04795656]
[1765363330325,6.5694,137.0,136.96,3.21]
[1765363331325,6.5694,137.0,136.97,3.25849412]
[1765363331529,6.61783632,137.0,136.97,3.26032591]
[1765363332135,0.04843632,137.0,136.97,3.26032591]
[1765363334136,0.04843632,137.0,136.97,9.83112591]
[1765363334337,0.04843632,137.0,136.98,3.21]
[1765363335328,6.5675,137.05,137.0,3.21]
[1765363335831,164.058,137.08,137.0,3.21]
[1765363336036,6.5676,137.04,137.0,3.21]
[1765363336427,0.05408509,137.03,137.01,0.04603021]
[1765363336628,0.0520339,137.03,137.01,0.04603021]
[1765363337439,6.5688,137.02,137.01,0.04603021]
[1765363338031,0.0520339,137.03,137.01,0.04603021]
[1765363339038,0.0520339,137.03,137.01,3.37603021]
[1765363340332,0.0520339,137.03,137.01,0.04603021]
[1765363342744,0.0520339,137.03,137.01,3.37603021]
[1765363343146,0.0520339,137.03,137.01,0.04603021]
[1765363345242,1.74973627,137.02,137.01,0.04603021]
[1765363345450,1.74973627,137.02,136.95,3.33]
[1765363345848,102.162,137.04,136.97,3.33]
[1765363345849,1.74973627,137.04,136.97,3.33]
[1765363346349,0.05168994,137.02,137.0,3.33]
[1765363348549,0.05168994,137.02,137.01,9.8989]
[1765363349148,0.05168994,137.02,137.01,3.33]
[1765363350549,0.05168994,137.02,137.01,9.8989]
[1765363352039,0.05168994,137.02,137.01,3.33]
[1765363354041,0.05168994,137.02,137.01,9.8989]
[1765363358156,102.1035,137.12,137.01,9.8989]
[1765363358157,102.081,137.15,137.04,3.33]
[1765363358359,1.74973627,137.12,137.06,3.33]
[1765363358848,102.0533,137.19,137.09,3.33]
[1765363359051,102.0533,137.19,137.08,1.74973627]
[1765363359052,1.74973627,137.17,137.1,65.37]
[1765363359250,0.04673466,137.15,137.12,3.37698517]
[1765363360459,1.79647093,137.15,137.12,0.04698517]
[1765363360650,0.04673466,137.15,137.12,0.04698517]
[1765363360954,6.5629,137.14,137.12,0.04698517]
[1765363367060,6.5643,137.11,137.06,9.7862]
[1765363367267,6.5643,137.11,137.07,3.22]
[1765363367964,106.63256769,137.15,137.07,3.22]
[1765363368165,0.05258616,137.12,137.1,0.04854202]
[1765363369466,6.61628616,137.12,137.1,0.04854202]
[1765363369663,6.61628616,137.12,137.1,3.26854202]
[1765363369962,0.05258616,137.12,137.1,3.26854202]
[1765363370167,0.05258616,137.12,137.1,9.83314202]
[1765363370358,0.05258616,137.12,137.11,3.22]
[1765363375470,0.05258616,137.12,137.11,9.7842]
[1765363375770,6.5621,137.16,137.12,3.22]
[1765363376773,0.04943308,137.15,137.12,3.22]
[1765363378474,0.04943308,137.15,137.13,6.5631]
[1765363378678,0.04943308,137.15,137.14,3.22]
[1765363380476,4.54976769,137.27,137.15,3.22]
[1765363380982,4.54976769,137.27,137.18,3.22]
[1765363381180,163.8461,137.28,137.18,3.22]
[1765363381373,163.8461,137.28,137.22,0.04795581]
[1765363381374,0.05486808,137.24,137.22,0.04795581]
[1765363381579,6.61306808,137.24,137.22,0.04795581]
[1765363387880,0.05486808,137.24,137.22,0.04795581]
[1765363389790,6.61286808,137.24,137.22,3.33795581]
[1765363390392,6.61286808,137.24,137.22,0.04795581]
[1765363391194,0.05486808,137.24,137.22,3.33795581]
[1765363391997,0.05486808,137.24,137.22,0.04795581]
[1765363393181,6.61306808,137.24,137.22,0.04795581]
[1765363394395,6.5584,137.23,137.22,0.04795581]
[1765363398197,6.5596,137.21,137.19,3.29]
[1765363399302,6.5596,137.21,137.19,3.34224226]
[1765363401903,6.5598,137.2,137.19,0.05224226]
[1765363404091,0.05100386,137.21,137.19,3.36224226]
[1765363405506,6.61040386,137.21,137.19,3.36224226]
[1765363406499,6.61040386,137.21,137.19,0.05224226]
[1765363408704,0.05100386,137.21,137.19,0.05224226]
[1765363408899,0.05100386,137.21,137.19,3.36224226]
[1765363409410,61.82,137.27,137.21,3.31]
[1765363410311,0.05103109,137.25,137.23,0.05418093]
[1765363410712,0.05103109,137.25,137.23,3.36418093]
[1765363411507,0.05103109,137.25,137.16,115.1924]
[1765363411508,0.05103109,137.25,137.16,3.31]
[1765363411717,6.561,137.18,137.16,3.31]
[1765363411915,185.6998,137.22,137.16,3.31]
[1765363412214,6.5608,137.18,137.15,3.31]
[1765363412630,6.61069023,137.18,137.15,3.35875856]
[1765363413226,6.61069023,137.18,137.16,3.31]
[1765363413227,0.04989023,137.18,137.16,3.31]
[1765363414727,0.04989023,137.18,137.16,9.8717]
[1765363415824,0.04989023,137.18,137.15,0.04875856]
[1765363415825,6.61079023,137.18,137.15,0.04875856]
[1765363416223,6.61079023,137.18,137.15,3.35875856]
[1765363416915,0.04989023,137.18,137.15,9.92095856]
[1765363418023,0.04989023,137.18,137.15,3.35875856]
[1765363420220,0.04989023,137.18,137.15,9.92095856]
[1765363420426,0.04989023,137.18,137.16,3.31]
[1765363423730,101.9914,137.27,137.22,3.31]
[1765363424029,104.71960077,137.27,137.22,3.31]
[1765363424533,6.5578,137.25,137.22,3.31]
[1765363424827,6.61347819,137.25,137.22,3.36214592]
[1765363425029,6.5581,137.24,137.22,3.36214592]
[1765363425220,6.5581,137.24,137.14,31.22491671]
[1765363425221,102.0207,137.23,137.17,3.31]
[1765363425624,6.5599,137.2,137.17,3.31]
[1765363426330,6.60666842,137.2,137.17,3.36447286]
[1765363426830,0.04676842,137.2,137.17,3.36447286]
[1765363427534,0.04676842,137.2,137.19,3.04]
[1765363429338,0.04676842,137.2,137.19,9.6003]
[1765363430238,6.558,137.24,137.2,3.04]
[1765363430739,68.3974,137.26,137.2,3.04]
[1765363431126,0.05515407,137.24,137.22,3.13550234]
[1765363431725,0.05515407,137.24,137.23,3.08]
[1765363432131,0.05515407,137.24,137.22,0.05550234]
[1765363432439,6.61315407,137.24,137.22,0.05550234]
[1765363436039,6.5584,137.23,137.22,0.05550234]
[1765363437940,0.05515407,137.24,137.22,3.13550234]
[1765363440041,0.05515407,137.24,137.22,9.69430234]
[1765363440235,0.05515407,137.24,137.23,3.08]
[1765363440738,0.05515407,137.24,137.22,0.05550234]
[1765363440940,0.05515407,137.24,137.22,3.13550234]
[1765363441334,6.61305407,137.24,137.22,3.13550234]
[1765363441543,2.78335484,137.24,137.22,0.05550234]
[1765363442133,0.05515407,137.24,137.22,0.05550234]
[1765363442535,6.5584,137.23,137.22,0.05550234]
[1765363444439,9.28660077,137.23,137.22,0.05550234]
[1765363444638,106.21130077,137.23,137.16,3.08]
[1765363444840,104.77180077,137.2,137.13,3.08]
[1765363445045,166.59180077,137.2,137.13,3.08]
[1765363445343,102.0518,137.19,137.13,3.08]
[1765363445740,0.05260437,137.17,137.15,0.0517312]
[1765363446541,0.05260437,137.17,137.15,3.1317312]
[1765363447344,6.61410437,137.17,137.15,0.0517312]
[1765363447551,9.34230514,137.17,137.15,0.0517312]
[1765363454654,1.74668469,137.16,137.15,0.0517312]
[1765363455956,6.61410437,137.17,137.15,0.0517312]
[1765363456256,1.74668469,137.16,137.15,0.0517312]
[1765363456951,0.05260437,137.17,137.15,3.2117312]
[1765363458059,6.61400437,137.17,137.15,3.2117312]
[1765363458248,1.74668469,137.16,137.15,0.0517312]
[1765363460055,8.30848469,137.16,137.15,0.0517312]
[1765363464563,6.5618,137.16,137.15,0.0517312]
[1765363464767,8.30848469,137.16,137.15,0.0517312]
[1765363470166,6.5618,137.16,137.15,0.0517312]
[1765363472159,1.79928906,137.17,137.15,0.0517312]
[1765363473070,163.9358,137.16,137.06,3.16]
[1765363473266,163.9358,137.16,137.07,3.16]
[1765363473267,1.74668469,137.13,137.07,3.16]
[1765363473662,1.74668469,137.13,137.1,3.16]
[1765363474169,1.80212478,137.13,137.1,3.21441728]
[1765363479065,8.36552478,137.13,137.1,0.05441728]
[1765363479475,8.36552478,137.13,137.1,3.21441728]
[1765363480574,6.5638,137.12,137.1,0.05441728]
[1765363481072,1.74668469,137.11,137.1,0.05441728]
[1765363483981,8.36532478,137.13,137.1,3.21441728]
[1765363484583,8.36532478,137.13,137.1,0.05441728]
[1765363484584,1.80212478,137.13,137.1,0.05441728]
[1765363485480,1.80212478,137.13,137.1,3.21441728]
[1765363485481,6.5641,137.12,137.1,3.21441728]
[1765363488189,6.5642,137.11,137.1,3.21441728]
[1765363488488,6.5642,137.11,137.1,0.05441728]
[1765363491380,6.5637,137.12,137.1,3.39441728]
[1765363493091,6.5642,137.11,137.1,0.05441728]
[1765363496387,1.74668469,137.12,137.05,3.34]
[1765363496586,123.9787,137.13,137.05,3.34]
[1765363496788,1.74668469,137.1,137.05,3.34]
[1765363497088,1.74668469,137.08,137.05,3.34]
[1765363497287,1.79705267,137.08,137.05,0.04334696]
[1765363498079,0.05036798,137.08,137.05,0.04334696]
[1765363498287,0.05036798,137.08,137.05,3.38334696]
[1765363500994,0.05036798,137.08,137.05,9.95034696]
[1765363501188,0.05036798,137.08,137.06,3.34]
[1765363501994,0.05036798,137.08,137.07,3.34]
[1765363504393,0.05036798,137.08,137.06,3.34]
[1765363507002,1.79705267,137.08,137.05,0.04334696]
[1765363507806,1.79705267,137.08,137.05,3.38334696]
[1765363509302,1.74668469,137.06,137.05,3.38334696]
[1765363509608,8.31318469,137.06,137.05,0.04334696]
[1765363509808,1.74668469,137.06,137.05,0.04334696]
[1765363510000,1.74668469,137.06,137.05,3.38334696]
[1765363510199,1.74668469,137.06,137.05,0.04334696]
[1765363510998,0.05036798,137.08,137.05,3.38334696]
[1765363511204,1.79705267,137.08,137.05,3.38334696]
[1765363511711,0.05036798,137.08,137.06,3.34]
[1765363514608,0.05036798,137.08,137.06,9.9065]
[1765363514813,0.05036798,137.08,137.07,3.34]
[1765363515008,102.0597,137.18,137.1,3.34]
[1765363515214,1.74668469,137.15,137.1,3.34]
[1765363515608,6.563,137.14,137.1,3.34]
[1765363516111,0.05427713,137.13,137.11,3.26169085]
[1765363520315,6.61757713,137.13,137.11,0.05169085]
[1765363525319,6.61757713,137.13,137.11,3.26169085]
[1765363528125,6.5637,137.12,137.11,0.05169085]
[1765363532319,6.5637,137.12,137.11,3.26169085]
[1765363532520,0.05427713,137.13,137.11,3.26169085]
[1765363534732,0.05427713,137.13,137.12,3.21]
[1765363535528,0.05427713,137.13,137.12,9.7737]
[1765363535725,2.72906605,137.18,137.13,3.21]
[1765363536530,2.72906605,137.18,137.14,3.21]
[1765363536531,9.28986605,137.18,137.14,3.21]
[1765363536734,0.05000581,137.17,137.15,3.26071918]
[1765363538526,0.05000581,137.17,137.16,9.7718]
[1765363538727,2.72906605,137.23,137.15,0.05071918]
[1765363538935,2.72906605,137.23,137.17,3.21]
[1765363539424,6.559,137.22,137.18,3.21]
[1765363539624,2.72906605,137.23,137.18,3.21]
[1765363539823,6.5595,137.21,137.19,0.05315943]
[1765363540028,2.72906605,137.2,137.12,3.21]
[1765363540226,166.65506605,137.2,137.12,3.21]
[1765363541328,0.05178338,137.17,137.15,3.26199725]
[1765363541934,0.05178338,137.17,137.15,9.82419725]
[1765363542134,0.05178338,137.17,137.16,3.21]
[1765363544738,0.05178338,137.17,137.15,0.05199725]
[1765363546635,6.61328338,137.17,137.15,0.05199725]
[1765363547556,0.05178338,137.17,137.15,3.24199725]
[1765363548139,0.05178338,137.17,137.15,0.05199725]
[1765363549434,0.05178338,137.17,137.15,3.24199725]
[1765363549735,6.61308338,137.17,137.15,3.24199725]
[1765363550134,6.5618,137.16,137.15,0.05199725]
[1765363550334,9.29086605,137.16,137.15,0.05199725]
[1765363551234,6.5618,137.16,137.15,0.05199725]
[1765363551433,9.29086605,137.16,137.15,0.05199725]
[1765363553022,166.66526605,137.16,137.1,3.19]
[1765363553227,2.72906605,137.13,137.1,3.19]
[1765363554031,2.77996395,137.13,137.1,0.04913382]
[1765363554237,6.5637,137.12,137.1,0.04913382]
[1765363558727,6.5637,137.12,137.1,3.23913382]
[1765363561643,6.5637,137.12,137.1,0.04913382]
[1765363566248,6.5642,137.11,137.1,0.04913382]
[1765363567442,6.5656,137.08,137.05,3.19]
[1765363567747,6.5662,137.07,137.03,3.22]
[1765363567950,61.88,137.08,137.03,3.22]
[1765363568352,6.5666,137.06,137.04,3.26370738]
[1765363568550,6.5666,137.06,137.04,0.04370738]
[1765363568551,2.72906605,137.06,137.04,0.04370738]
[1765363568752,104.87936605,137.06,137.0,3.22]
[1765363569048,6.5684,137.03,137.0,3.22]
[1765363569248,2.72906605,137.03,136.97,3.22]
[1765363569454,6.569,137.01,136.97,3.22]
[1765363569651,0.0516235,137.0,136.97,3.22]
[1765363570144,0.0516235,137.0,136.99,3.22]
[1765363571950,61.88,137.05,137.01,3.22]
[1765363572141,68.4471,137.05,137.01,3.22]
[1765363573054,0.05565157,137.04,137.02,0.0516235]
[1765363573251,6.62355157,137.04,137.02,0.0516235]
[1765363574943,0.05565157,137.04,137.02,3.2716235]
[1765363575148,2.72906605,137.09,137.02,3.2716235]
[1765363576151,2.72906605,137.09,137.04,3.09]
[1765363576152,0.05332224,137.07,137.04,3.09]
[1765363576348,0.05332224,137.07,137.04,3.13989321]
[1765363578258,6.61942224,137.07,137.04,3.13989321]
[1765363578953,6.5666,137.06,137.04,0.04989321]
[1765363579159,8.31521949,137.06,137.04,0.04989321]
[1765363579848,6.567,137.05,137.04,0.04989321]
[1765363586057,63.64861949,137.06,137.04,0.04989321]
[1765363586058,70.21521949,137.06,137.04,0.04989321]
[1765363586263,6.5666,137.06,137.04,3.13989321]
[1765363586661,1.80194173,137.07,137.04,3.13989321]
[1765363587462,8.36804173,137.07,137.04,3.13989321]
[1765363588559,1.80194173,137.07,137.04,0.04989321]
[1765363589260,8.31561949,137.05,137.04,0.04989321]
[1765363595060,70.23561949,137.05,137.04,0.04989321]
[1765363596668,102.1893,137.01,136.96,3.09]
[1765363596968,63.66861949,137.01,136.96,3.09]
[1765363597163,63.66861949,137.01,136.97,3.09]
[1765363597577,0.0478033,137.0,136.98,3.14313135]
[1765363597762,6.5699,136.99,136.98,3.14313135]
[1765363599978,8.31851949,136.99,136.98,0.05313135]
[1765363600270,102.2155,136.97,136.91,3.09]
[1765363600465,1.74861949,136.96,136.91,3.09]
[1765363600658,102.2155,136.97,136.91,3.09]
[1765363600659,1.74861949,136.94,136.91,3.09]
[1765363601059,1.80238381,136.94,136.91,3.09]
[1765363601368,6.573,136.93,136.91,3.09]
[1765363601572,0.05376432,136.94,136.91,3.09]
[1765363602769,0.05376432,136.94,136.92,3.09]
[1765363603272,0.00376432,136.94,136.92,3.09]
[1765363604264,0.00376432,136.94,136.92,3.13876124]
[1765363607371,6.57616432,136.94,136.92,3.13876124]
[1765363607570,6.57616432,136.94,136.92,0.04876124]
[1765363608166,6.57616432,136.94,136.89,9.9246]
[1765363608167,6.5737,136.92,136.89,3.35]
[1765363608371,61.94376432,136.94,136.86,3.35]
[1765363608576,61.94,136.94,136.86,3.35]
[1765363608775,6.5732,136.93,136.87,3.35]
[1765363609166,0.04692104,136.91,136.87,3.35]
[1765363609371,0.04692104,136.91,136.87,9.9256]
[1765363609572,0.04692104,136.91,136.88,3.35]
[1765363609779,102.1993,136.99,136.88,3.35]
[1765363609982,61.94,136.98,136.88,3.35]
[1765363610272,68.5108,136.98,136.92,3.35]
[1765363610478,61.94,136.98,136.92,3.35]
[1765363610668,0.05161597,136.96,136.94,0.05241031]
[1765363612272,6.62301597,136.96,136.94,0.05241031]
[1765363612475,0.05161597,136.96,136.94,3.40241031]
[1765363616286,6.62301597,136.96,136.94,3.40241031]
[1765363616587,6.62301597,136.96,136.94,0.05241031]
[1765363616787,6.62301597,136.96,136.94,3.40241031]
[1765363618689,0.05161597,136.96,136.94,3.40241031]
[1765363619894,0.05161597,136.96,136.94,0.05241031]
[1765363620096,6.62301597,136.96,136.94,0.05241031]
[1765363621087,6.5718,136.95,136.94,0.05241031]
[1765363621393,6.5718,136.95,136.94,3.40241031]
[1765363623807,0.05161597,136.96,136.94,3.40241031]
[1765363624296,0.05161597,136.96,136.94,0.05241031]
[1765363624493,6.62291597,136.96,136.94,0.05241031]
[1765363626703,8.37448594,136.96,136.94,0.05241031]
[1765363627797,6.5735,136.92,136.9,3.35]
[1765363627996,8.32506997,136.92,136.9,3.35]
[1765363628188,6.5725,136.94,136.9,3.35]
[1765363628894,1.79833476,136.93,136.9,3.35]
[1765363629294,6.5733,136.92,136.9,3.35]
[1765363630893,1.75156997,136.91,136.85,65.35]
[1765363631096,1.80204256,136.89,136.85,3.35]
[1765363631299,1.80204256,136.89,136.81,3.35]
[1765363631300,1.75156997,136.87,136.81,3.35]
[1765363631494,0.05295489,136.85,136.84,3.35]
[1765363631986,1.75156997,136.89,136.85,3.35]
[1765363632389,63.71156997,136.91,136.85,3.35]
[1765363632804,61.96,136.91,136.85,3.35]
[1765363632998,61.96,136.91,136.86,3.35]
[1765363633295,0.05173838,136.89,136.87,0.05295489]
[1765363634696,0.05173838,136.89,136.87,3.40295489]
[1765363636505,0.05173838,136.89,136.87,9.97835489]
[1765363636706,0.05173838,136.89,136.88,3.25]
[1765363638706,0.05173838,136.89,136.88,9.8252]
[1765363639009,0.00173838,136.89,136.88,9.8252]
[1765363639808,6.5728,136.94,136.9,3.23]
[1765363640199,61.98,136.98,136.9,3.23]
[1765363640399,6.5718,136.95,136.92,3.23]
[1765363640801,6.6234563,136.95,136.92,3.27919801]
[1765363644401,0.0516563,136.95,136.92,9.85239801]
[1765363645416,0.0516563,136.95,136.92,3.27919801]
[1765363646014,6.5728,136.93,136.92,0.04919801]
[1765363654818,9.31182049,136.93,136.92,0.04919801]
[1765363657526,104.98492049,136.93,136.88,3.23]
[1765363658025,6.5747,136.89,136.86,3.23]
[1765363658421,0.05240219,136.89,136.86,0.05331087]
[1765363658828,0.05240219,136.89,136.86,3.28331087]
[1765363658829,6.5752,136.88,136.86,3.28331087]
[1765363661429,6.5757,136.87,136.86,0.05331087]
[1765363661824,0.05240219,136.89,136.86,3.28331087]
[1765363662530,6.5752,136.88,136.86,3.28331087]
[1765363663926,6.5757,136.87,136.86,0.05331087]
[1765363668446,102.3079,136.85,136.78,3.19]
[1765363668642,64.71902049,136.84,136.78,3.19]
[1765363669051,102.2899,136.87,136.78,3.19]
[1765363669052,64.71902049,136.86,136.78,3.19]
[1765363669549,0.05175145,136.83,136.78,3.19]
[1765363670451,0.05175145,136.83,136.8,6.5789]
[1765363670650,0.05175145,136.83,136.81,3.19]
[1765363672454,0.05175145,136.83,136.81,9.7685]
[1765363672752,0.05175145,136.83,136.82,3.19]
[1765363674951,2.73902049,136.86,136.83,3.19]
[1765363676054,6.5767,136.85,136.83,3.19]
[1765363676653,2.79147493,136.86,136.83,3.19]
[1765363677760,2.79147493,136.86,136.81,3.23780946]
[1765363680056,6.5781,136.82,136.81,3.23780946]
[1765363680650,6.5781,136.82,136.81,0.04780946]
[1765363681857,6.5781,136.82,136.76,3.19]
[1765363681858,102.3284,136.82,136.76,3.19]
[1765363682165,102.3494,136.79,136.73,3.19]
[1765363682459,6.5808,136.77,136.73,3.19]
[1765363682660,62.0,136.79,136.73,3.19]
[1765363682851,6.5789,136.81,136.75,6.5813]
[1765363683052,6.5789,136.81,136.76,3.19]
[1765363683659,62.0,136.82,136.77,3.19]
[1765363683851,62.0,136.82,136.78,0.05364192]
[1765363684048,0.05217472,136.81,136.79,3.19]
[1765363685858,2.73902049,136.8,136.78,0.05364192]
[1765363686265,9.31832049,136.8,136.78,0.05364192]